bitfinex-derivatives/quotes_ETHF0:USTF0_20251012
["timestamp","ask_amount","ask_price","bid_price","bid_amount"]
[1760273317662,5.13545094,3829.0,3828.9,1.66766]
[1760273317965,8.1741534,3829.0,3828.9,0.46996]
[1760273318264,8.17685537,3829.0,3828.9,0.46996]
[1760273318760,48.97685537,3829.0,3828.9,0.46996]
[1760273319664,48.68645537,3829.0,3828.9,1.66766]
[1760273320053,48.68645537,3829.0,3828.9,0.95056]
[1760273320361,48.68645537,3829.0,3828.9,0.46996]
[1760273320859,48.97685537,3829.0,3828.9,0.46996]
[1760273322554,0.00270197,3829.0,3828.9,7.17706]
[1760273322760,1.7404,3830.2,3830.1,0.95041]
[1760273322960,1.0393,3830.5,3830.4,0.46978]
[1760273323459,47.72451145,3830.5,3830.4,0.46978]
[1760273323664,1.0393,3830.0,3829.9,0.46984]
[1760273323961,1.04119174,3830.0,3829.9,0.46984]
[1760273324157,7.31338901,3830.0,3829.9,0.46984]
[1760273324356,48.11338901,3830.0,3829.9,0.46984]
[1760273324554,6.27408901,3830.0,3829.9,0.46984]
[1760273324866,6.27408901,3830.0,3829.9,1.18694]
[1760273325057,0.7489,3830.8,3830.7,1.18684]
[1760273325262,0.7489,3831.4,3831.3,0.46967]
[1760273325653,6.34171104,3831.4,3831.3,0.46967]
[1760273325858,0.2805,3830.5,3830.3,0.46979]
[1760273326056,0.2805,3830.5,3830.3,0.47186089]
[1760273326057,0.7566,3830.4,3830.3,0.47186089]
[1760273326265,6.92729988,3830.4,3830.3,0.47186089]
[1760273326768,6.17069988,3830.4,3830.3,1.22406089]
[1760273328665,2.8139967,3830.4,3830.3,1.22406089]
[1760273330263,0.00214329,3830.5,3830.4,0.7522]
[1760273331064,0.75874329,3830.5,3830.4,0.7522]
[1760273331267,0.7566,3830.4,3830.3,0.47186089]
[1760273331470,0.7566,3830.4,3830.3,1.22406089]
[1760273331662,7.11421824,3830.4,3830.3,1.22406089]
[1760273332063,7.11421824,3830.4,3830.3,0.47186089]
[1760273333461,7.11421824,3830.4,3830.3,1.22406089]
[1760273333771,8.11411824,3830.4,3830.3,0.97766089]
[1760273334174,8.11411824,3830.4,3830.3,0.00207089]
[1760273337276,48.91411824,3830.4,3830.3,0.00207089]
[1760273338778,48.91411824,3830.4,3830.3,0.47186089]
[1760273339678,49.38389824,3830.4,3830.3,0.00207089]
[1760273339975,49.38389824,3830.4,3830.3,0.47186089]
[1760273340483,48.91411824,3830.4,3830.3,0.47186089]
[1760273341590,48.91411824,3830.4,3829.2,1.8588742]
[1760273341591,1.7565,3829.3,3829.2,0.5058]
[1760273341887,1.7565,3829.3,3829.2,0.9819]
[1760273342092,4.62559986,3829.3,3829.2,1.7341]
[1760273342591,4.62559986,3829.3,3829.2,1.4546803]
[1760273343283,4.62559986,3829.3,3829.2,2.1876803]
[1760273343888,8.09289644,3829.3,3829.2,0.4727803]
[1760273344592,48.89289644,3829.3,3829.2,0.4727803]
[1760273345284,48.89289644,3829.3,3829.2,0.9830803]
[1760273346189,48.89289644,3829.3,3829.2,0.4727803]
[1760273346986,48.89289644,3829.3,3829.2,0.9830803]
[1760273348191,48.89289644,3829.3,3829.2,0.4727803]
[1760273350790,48.89289644,3829.3,3829.2,0.9830803]
[1760273350989,6.33639644,3829.3,3829.2,4.0491545]
[1760273351188,6.33639644,3829.3,3829.2,2.1902803]
[1760273351400,6.33639644,3829.3,3829.2,7.1902803]
[1760273351401,2.23992986,3829.3,3829.2,7.1902803]
[1760273351592,1.52784329,3830.5,3830.4,2.18728]
[1760273351787,1.24734329,3830.5,3830.4,2.18728]
[1760273351986,47.02314389,3830.5,3830.4,2.18728]
[1760273352596,48.26834389,3830.5,3830.4,2.18728]
[1760273353695,47.02314389,3830.5,3830.4,2.18728]
[1760273353894,47.02314389,3830.5,3830.4,4.048182]
[1760273354689,6.22314389,3830.5,3830.4,4.048182]
[1760273356891,2.78869263,3830.5,3830.4,4.048182]
[1760273357087,2.12933263,3830.5,3830.4,4.048182]
[1760273357691,7.50968433,3830.5,3830.4,0.46978]
[1760273358087,7.51195365,3830.5,3830.4,0.46978]
[1760273358289,48.31195365,3830.5,3830.4,0.46978]
[1760273359698,48.31195365,3830.5,3830.4,2.18728]
[1760273359896,47.03845365,3830.5,3830.4,4.048182]
[1760273360098,2.13160195,3830.5,3830.4,7.18728]
[1760273360288,0.00019843,3830.5,3830.4,7.18728]
[1760273360488,0.2818,3832.5,3831.5,2.35201]
[1760273360697,0.22,3833.3,3833.2,1.20244]
[1760273360902,0.22,3833.3,3832.8,1.17369]
[1760273360903,0.22,3833.3,3833.1,1.85973082]
[1760273361198,7.03283414,3833.2,3833.1,0.46944]
[1760273361396,5.17472185,3833.2,3833.1,1.20484062]
[1760273361790,5.93252185,3833.2,3833.1,1.20484062]
[1760273362094,5.93252185,3833.2,3833.1,0.47184062]
[1760273362495,4.51226185,3833.2,3833.1,1.20484062]
[1760273362691,4.50400185,3833.2,3833.1,0.47184062]
[1760273362996,3.89466185,3833.2,3833.1,0.47184062]
[1760273363202,3.23163185,3833.2,3833.1,1.20484062]
[1760273363506,3.23163185,3833.2,3833.1,0.47184062]
[1760273365104,6.64271376,3833.2,3833.1,0.47184062]
[1760273370699,0.2818,3833.0,3832.9,0.46946]
[1760273371210,48.08465204,3833.0,3832.9,0.46946]
[1760273371606,48.08465204,3833.0,3832.9,0.47204433]
[1760273373516,43.63503168,3833.0,3832.9,1.19704433]
[1760273373709,43.63503168,3833.0,3832.9,2.22424433]
[1760273374511,43.63503168,3833.0,3832.9,7.22424433]
[1760273375015,43.03660168,3833.0,3832.9,7.22424433]
[1760273375215,42.39059168,3833.0,3832.9,7.22424433]
[1760273375515,0.30146168,3833.0,3832.9,7.22424433]
[1760273375720,1.68e-06,3833.0,3832.9,7.22424433]
[1760273376515,1.68e-06,3833.0,3832.9,2.22424433]
[1760273376808,5.48392886,3833.0,3832.9,0.47204433]
[1760273377214,46.28392886,3833.0,3832.9,0.47204433]
[1760273377717,46.28392886,3833.0,3832.9,2.22424433]
[1760273378213,46.28392886,3833.0,3832.9,0.47204433]
[1760273379912,45.98252886,3833.0,3832.9,2.22424433]
[1760273381710,45.98252886,3833.0,3832.9,1.49924433]
[1760273382912,45.98252886,3833.0,3832.9,2.27434433]
[1760273383104,3.45902718,3833.0,3832.9,2.27434433]
[1760273383310,0.00335771,3833.2,3833.1,1.44005]
[1760273383511,0.00335771,3833.2,3833.1,2.21515]
[1760273383713,47.08274336,3833.2,3833.1,2.21515]
[1760273385514,47.58014336,3833.2,3833.1,2.21515]
[1760273387414,48.06534336,3833.2,3833.1,2.21515]
[1760273387618,48.82774336,3833.2,3833.1,0.46945]
[1760273389912,49.29718336,3833.2,3832.9,0.00258433]
[1760273390109,2.51916,3833.0,3832.9,0.00258433]
[1760273390512,13.68942313,3833.0,3832.9,0.00258433]
[1760273390712,1.745,3832.2,3832.1,0.46957]
[1760273391217,7.99366665,3832.2,3832.1,0.46957]
[1760273391522,48.79366665,3832.2,3832.1,0.46957]
[1760273391710,48.79366665,3832.2,3832.1,0.4723691]
[1760273401026,49.26322665,3832.2,3832.1,0.0027991]
[1760273401324,1.745,3831.4,3831.3,1.72327]
[1760273401526,1.745,3831.4,3831.3,1.2536]
[1760273401720,8.19662679,3831.4,3831.3,1.2536]
[1760273402120,8.19662679,3831.4,3831.3,1.72327]
[1760273402520,8.19662679,3831.4,3831.3,2.21855092]
[1760273403218,8.19662679,3831.4,3831.3,0.47285092]
[1760273403428,8.19662679,3831.4,3831.3,0.00318092]
[1760273403726,1.7281,3830.5,3830.4,0.96278]
[1760273403920,41.2989,3830.5,3830.4,2.19638]
[1760273404120,47.17651644,3830.5,3830.4,2.19638]
[1760273404621,47.1797749,3830.5,3830.4,2.19831297]
[1760273404931,1.7281,3831.8,3831.7,1.68622]
[1760273405230,1.7281,3831.8,3831.7,0.46962]
[1760273405432,7.87017411,3831.8,3831.7,0.46962]
[1760273405619,4.49781295,3831.8,3831.3,0.7236]
[1760273405928,1.7281,3831.1,3831.0,0.9627]
[1760273406121,1.7281,3831.1,3831.0,0.4697]
[1760273406318,8.03476145,3831.1,3831.0,0.4697]
[1760273406516,8.50445145,3831.1,3830.9,0.46971]
[1760273406716,2.0163,3831.0,3830.9,0.46971]
[1760273407129,8.34594468,3831.0,3830.9,0.46971]
[1760273407322,7.30304468,3831.0,3830.9,2.19631]
[1760273407627,6.32964468,3831.0,3830.9,2.19631]
[1760273407932,2.88260258,3831.0,3830.9,7.19631]
[1760273408430,41.2989,3831.4,3831.3,2.19627]
[1760273408630,41.7734,3831.4,3831.3,2.19627]
[1760273408826,48.96136608,3831.4,3831.3,2.19627]
[1760273409528,47.23326608,3831.4,3831.3,2.19627]
[1760273409725,6.43326608,3831.4,3831.3,2.19627]
[1760273410428,6.43326608,3831.4,3831.3,4.05610943]
[1760273411224,40.8,3831.7,3831.6,0.46963]
[1760273411425,40.8,3831.7,3831.6,2.19623]
[1760273411621,2.79269383,3831.7,3831.6,2.19623]
[1760273412224,2.79269383,3831.7,3831.6,4.05463645]
[1760273412729,0.00293621,3831.8,3831.7,1.7266]
[1760273413026,0.00293621,3831.8,3831.7,2.19622]
[1760273413233,3.32124442,3831.8,3831.7,2.19622]
[1760273413830,3.32124442,3831.8,3831.7,4.05462645]
[1760273414034,6.76757489,3831.8,3831.7,2.19622]
[1760273416232,6.76757489,3831.8,3831.7,4.05462645]
[1760273417131,6.76757489,3831.8,3831.7,2.19622]
[1760273417834,6.26867489,3831.8,3831.7,2.19622]
[1760273418032,3.32124442,3831.8,3831.7,2.19622]
[1760273418937,7.78652007,3831.8,3831.7,2.19622]
[1760273419330,7.03182007,3831.8,3831.7,2.19622]
[1760273421339,3.32124442,3831.8,3831.7,4.52088353]
[1760273421838,3.32124442,3831.8,3831.7,2.19622]
[1760273422926,3.82014442,3831.8,3831.7,2.19622]
[1760273423539,3.32124442,3831.8,3831.7,2.19622]
[1760273425536,0.7547,3832.6,3832.1,1.47257]
[1760273425741,0.4989,3833.0,3832.9,1.70307]
[1760273425930,1.7281,3833.0,3832.9,2.19607]
[1760273426238,45.81800627,3833.0,3832.9,0.46947]
[1760273426438,45.81800627,3833.0,3832.9,2.82590358]
[1760273426641,45.53184921,3833.0,3832.9,3.54950358]
[1760273427133,45.53184921,3833.0,3832.9,1.68607]
[1760273427834,48.9045388,3833.0,3832.9,1.68607]
[1760273428742,1.1734,3833.9,3833.5,1.17348]
[1760273428743,0.7547,3833.9,3833.5,1.17348]
[1760273429043,1.2616,3834.0,3833.9,0.46935]
[1760273429246,1.4816,3834.0,3833.9,0.46935]
[1760273429433,9.24770961,3834.0,3833.9,0.46935]
[1760273429838,45.05028316,3834.0,3833.9,0.47194451]
[1760273430844,45.80498316,3834.0,3833.9,0.47194451]
[1760273435043,49.19864064,3834.0,3833.9,0.47194451]
[1760273436650,54.19864064,3834.0,3833.9,0.47194451]
[1760273439544,0.7457,3833.9,3833.3,0.95355]
[1760273439751,2.1016,3833.0,3832.9,0.46947]
[1760273440139,49.29127352,3833.0,3832.9,0.46947]
[1760273440745,49.29127352,3833.0,3832.9,2.33055258]
[1760273441147,47.93537352,3833.0,3832.9,2.93405258]
[1760273441341,0.1677,3833.5,3833.2,0.7345]
[1760273441653,0.29077355,3834.0,3833.9,0.46935]
[1760273441843,42.13577355,3834.0,3833.9,1.01015]
[1760273442044,48.56515046,3834.0,3833.9,1.01015]
[1760273442250,3.01260364,3834.0,3833.9,9.16088579]
[1760273442444,0.3109,3835.0,3834.9,0.99623]
[1760273442445,1.3559,3835.0,3834.9,0.99623]
[1760273442643,41.3199,3835.0,3834.9,2.36793]
[1760273442842,0.3109,3836.0,3834.9,2.36793]
[1760273442843,1.4084,3836.0,3835.9,0.46911]
[1760273443245,45.0249959,3836.0,3835.9,0.47100254]
[1760273443449,45.7985959,3836.0,3835.9,0.47100254]
[1760273443654,54.13678658,3836.0,3835.9,0.00189254]
[1760273446458,1.8711,3834.7,3834.6,0.99626]
[1760273446658,1.319,3834.7,3834.6,2.36796]
[1760273446957,7.68389172,3834.7,3834.6,2.36796]
[1760273447154,3.00398752,3834.7,3834.6,7.36796]
[1760273447361,1.319,3835.5,3835.4,2.36787]
[1760273447560,2.2027,3835.5,3835.4,0.46917]
[1760273447750,8.41234473,3835.5,3835.4,0.46917]
[1760273450267,8.41234473,3835.5,3834.7,0.99625]
[1760273450268,1.0975,3834.8,3834.7,0.99625]
[1760273450470,1.8711,3834.8,3834.7,2.36795]
[1760273450664,8.26816481,3834.8,3834.7,2.36795]
[1760273453166,8.26816481,3834.8,3834.7,1.54765]
[1760273453366,8.26816481,3834.8,3834.7,0.46925]
[1760273453575,8.26816481,3834.8,3834.7,2.36795]
[1760273453769,8.26816481,3834.8,3834.7,1.54765]
[1760273453974,49.06816481,3834.8,3834.7,1.54765]
[1760273457571,49.06816481,3834.8,3834.7,0.46925]
[1760273457970,49.06816481,3834.8,3834.6,0.00190563]
[1760273458174,1.56675,3834.7,3834.6,0.47116563]
[1760273458374,1.8711,3834.7,3834.6,0.47116563]
[1760273458575,8.06587181,3834.7,3834.6,0.47116563]
[1760273459178,8.06587181,3834.7,3834.6,0.00190563]
[1760273459377,8.53512181,3834.7,3834.6,0.47116563]
[1760273459574,8.06587181,3834.7,3834.6,1.54956563]
[1760273459779,8.06587181,3834.7,3834.6,2.36986563]
[1760273460372,8.06587181,3834.7,3834.6,0.47116563]
[1760273460869,8.06587181,3834.7,3834.6,0.99816563]
[1760273462070,1.17317,3834.6,3833.7,1.8547462]
[1760273462266,1.8711,3833.8,3833.7,0.99637]
[1760273462674,8.13341057,3833.8,3833.7,0.99637]
[1760273463478,8.13341057,3833.8,3833.7,0.99930898]
[1760273464274,8.13341057,3833.8,3833.7,0.47230898]
[1760273464782,49.40277057,3833.8,3833.7,0.00293898]
[1760273466674,54.40277057,3833.8,3833.7,0.00293898]
[1760273466874,54.40277057,3833.8,3832.8,1.17371]
[1760273466875,1.8589,3832.9,3832.8,0.46948]
[1760273467270,8.08538435,3832.9,3832.8,0.46948]
[1760273467876,8.08769232,3832.9,3832.8,1.52891582]
[1760273468080,2.22641566,3832.9,3832.8,9.18376202]
[1760273468287,42.6589,3833.8,3833.7,0.46937]
[1760273468784,48.81202584,3833.8,3833.7,0.46937]
[1760273469284,48.81503838,3833.8,3833.7,1.52607]
[1760273469482,6.15613838,3833.8,3833.7,7.32617]
[1760273470184,6.15613838,3833.8,3833.7,9.18579539]
[1760273471180,8.01503838,3833.8,3833.7,1.52607]
[1760273475283,8.01503838,3833.8,3833.7,3.38569539]
[1760273476782,8.01503838,3833.8,3833.7,2.32899539]
[1760273477786,8.01503838,3833.8,3833.7,2.83969539]
[1760273478594,6.15613838,3833.8,3833.7,2.32617]
[1760273480089,7.48103838,3833.8,3833.7,2.32617]
[1760273481579,2.13749354,3833.8,3833.7,7.32617]
[1760273481782,2.54e-06,3833.8,3833.7,7.32617]
[1760273482280,0.8092,3834.7,3834.6,1.0567]
[1760273482483,0.8245,3835.0,3834.9,2.32603]
[1760273482689,0.3088,3835.5,3835.4,0.46917]
[1760273482988,5.58481971,3835.5,3835.4,0.97987]
[1760273483197,8.35129829,3835.5,3835.4,2.32597]
[1760273483498,49.15321783,3835.5,3835.4,2.32597]
[1760273484195,49.15321783,3835.5,3835.4,0.97987]
[1760273484995,49.15321783,3835.5,3835.4,0.46917]
[1760273486997,1.8589,3835.2,3835.1,0.4692]
[1760273487192,1.8589,3835.2,3835.1,0.9799]
[1760273487397,8.1615147,3835.2,3835.1,1.5259]
[1760273487897,8.1615147,3835.2,3835.1,2.326]
[1760273488797,8.1615147,3835.2,3835.1,1.5259]
[1760273490795,6.3026147,3835.2,3835.1,2.326]
[1760273491400,2.85800288,3835.2,3835.1,2.326]
[1760273491802,40.80191954,3835.5,3835.4,2.32597]
[1760273492001,41.61111954,3835.5,3835.4,2.32597]
[1760273492201,47.90654858,3835.5,3835.4,2.32597]
[1760273492798,47.09734858,3835.5,3835.4,2.32597]
[1760273493004,47.09734858,3835.5,3835.4,4.18363615]
[1760273493903,49.30584858,3835.5,3835.4,1.52587]
[1760273495402,49.30584858,3835.5,3835.4,0.46917]
[1760273496910,49.30584858,3835.5,3835.4,0.99857]
[1760273498007,49.30584858,3835.5,3835.4,0.46917]
[1760273498601,1.8866,3835.1,3835.0,2.32687615]
[1760273498806,1.8866,3835.1,3835.0,0.46921]
[1760273499115,8.05484163,3835.1,3835.0,0.46921]
[1760273503712,1.1037,3834.3,3834.2,1.85766615]
[1760273503910,1.9304,3834.3,3834.2,0.46931]
[1760273504214,48.83423556,3834.3,3834.2,0.97861]
[1760273509323,48.83423556,3834.3,3834.2,0.46931]
[1760273514026,49.30353556,3834.3,3834.2,0.46931]
[1760273516728,48.83423556,3834.3,3834.2,0.97861]
[1760273517027,1.9304,3833.7,3833.6,2.79635786]
[1760273517234,1.9304,3833.7,3833.6,2.33115978]
[1760273517433,8.27356787,3833.7,3833.6,2.33115978]
[1760273517835,8.27356787,3833.7,3833.6,0.46939]
[1760273518033,8.74293787,3833.7,3833.6,0.46939]
[1760273518528,8.74293787,3833.7,3833.3,1.86176978]
[1760273518529,1.5731,3833.6,3833.5,0.4694]
[1760273518737,2.3998,3833.6,3833.5,0.4694]
[1760273518934,8.77527727,3833.6,3833.5,0.4694]
[1760273519541,1.9304,3833.2,3833.1,0.46945]
[1760273519726,1.409,3833.0,3832.9,0.46946]
[1760273520027,5.03994784,3833.0,3832.9,0.46946]
[1760273520234,49.26743328,3833.0,3832.9,0.46946]
[1760273522737,49.26743328,3833.0,3832.9,0.97876]
[1760273523235,49.26743328,3833.0,3832.9,0.46946]
[1760273528030,49.73689328,3833.0,3832.9,0.46946]
[1760273528230,2.23107,3832.9,3832.8,0.00273582]
[1760273528733,0.46952,3832.6,3832.2,1.86176978]
[1760273529033,1.7616,3832.3,3832.2,1.86176978]
[1760273529237,1.7616,3832.3,3832.2,2.33132978]
[1760273529536,7.97033564,3832.3,3832.2,0.46956]
[1760273529838,48.77319939,3832.3,3832.2,0.47235569]
[1760273530439,48.77319939,3832.3,3832.2,1.00025569]
[1760273530833,48.77319939,3832.3,3832.2,1.52645569]
[1760273531434,2.12037655,3832.3,3832.2,7.28405569]
[1760273531640,0.00286375,3832.3,3832.2,7.28405569]
[1760273531946,3.75e-06,3832.3,3832.2,7.28405569]
[1760273533840,3.75e-06,3832.3,3832.2,2.28405569]
[1760273535939,1.76160375,3832.3,3832.2,1.52645569]
[1760273536132,8.21123011,3832.3,3832.2,3.85208506]
[1760273536835,8.21123011,3832.3,3832.2,3.32588506]
[1760273537039,8.21123011,3832.3,3832.2,2.33470763]
[1760273537641,49.01123011,3832.3,3832.2,2.86260763]
[1760273538240,49.01123011,3832.3,3832.2,0.47235569]
[1760273538835,49.01123011,3832.3,3832.2,0.00279569]
[1760273540744,49.01123011,3832.3,3832.2,0.53069569]
[1760273540938,49.01123011,3832.3,3832.2,0.00279569]
[1760273542648,49.01123011,3832.3,3832.2,0.53069569]
[1760273543148,49.01123011,3832.3,3832.2,0.00279569]
[1760273545148,49.01123011,3832.3,3832.2,1.81449569]
[1760273545442,47.76302636,3832.3,3832.2,1.81449569]
[1760273545646,48.51162636,3832.3,3832.2,1.81449569]
[1760273546145,47.24962636,3832.3,3832.2,1.81449569]
[1760273546343,47.25270409,3832.3,3832.2,1.81449569]
[1760273546848,47.76610409,3832.3,3832.2,2.28405569]
[1760273547146,48.51470409,3832.3,3832.2,2.28405569]
[1760273547347,7.71470409,3832.3,3832.2,2.28405569]
[1760273547843,8.21430409,3832.3,3832.2,2.28405569]
[1760273548241,8.21430409,3832.3,3832.2,1.52645569]
[1760273549536,8.21430409,3832.3,3832.2,0.00279569]
[1760273549742,8.21430409,3832.3,3832.0,0.46958]
[1760273549743,12.93526409,3832.3,3832.0,0.46958]
[1760273549946,1.7616,3832.1,3832.0,0.46958]
[1760273550439,1.7616,3832.1,3831.4,2.32562937]
[1760273550440,2.0882,3831.5,3831.4,2.3383134]
[1760273550647,42.8882,3831.5,3831.4,2.86897798]
[1760273550843,48.9528263,3831.5,3831.4,2.28412458]
[1760273551045,48.2042263,3831.5,3831.4,2.28412458]
[1760273551245,48.9528263,3831.5,3831.4,2.28412458]
[1760273551749,47.7046263,3831.5,3831.4,2.28412458]
[1760273552349,48.9528263,3831.5,3831.4,2.28412458]
[1760273554748,49.2669263,3831.5,3831.4,0.47242458]
[1760273554951,49.2669263,3831.5,3831.4,2.341857]
[1760273556450,49.2669263,3831.5,3831.4,1.872197]
[1760273556647,49.2669263,3831.5,3831.4,0.00276458]
[1760273556842,54.2669263,3831.5,3831.4,0.00276458]
[1760273557744,54.2669263,3831.5,3831.4,0.47242458]
[1760273558049,54.7365663,3831.5,3831.4,0.47242458]
[1760273558447,54.2669263,3831.5,3831.4,0.47242458]
[1760273558847,54.7365663,3831.5,3831.4,0.00276458]
[1760273562349,49.7365663,3831.5,3831.4,0.00276458]
[1760273563554,49.2669263,3831.5,3831.4,0.47242458]
[1760273564753,49.7365663,3831.5,3831.4,0.47242458]
[1760273565550,49.2669263,3831.5,3831.4,0.47242458]
[1760273566546,49.7365663,3831.5,3831.4,0.47242458]
[1760273568254,49.2669263,3831.5,3831.4,0.98212458]
[1760273569049,49.2669263,3831.5,3831.4,0.47242458]
[1760273569264,49.7365663,3831.5,3831.4,0.47242458]
[1760273569552,49.7365663,3831.5,3831.4,0.00276458]
[1760273569954,49.7365663,3831.5,3831.4,0.47242458]
[1760273570258,49.7365663,3831.5,3831.4,0.00276458]
[1760273570548,49.7365663,3831.5,3831.4,0.47242458]
[1760273570955,49.7365663,3831.5,3831.4,0.00276458]
[1760273573253,49.7365663,3831.5,3831.4,0.47242458]
[1760273573758,49.7365663,3831.5,3831.4,0.00276458]
[1760273576856,49.2669263,3831.5,3831.4,0.47242458]
[1760273581257,49.2669263,3831.5,3831.4,2.851557]
[1760273581459,49.2669263,3831.5,3831.4,1.77592458]
[1760273582164,2.122861,3831.5,3831.4,7.29262458]
[1760273582353,0.00307773,3832.3,3832.0,0.1847]
[1760273582555,1.3021,3833.4,3833.3,1.00542]
[1760273582852,4.78300363,3833.4,3833.3,2.24682]
[1760273583053,48.41187939,3833.4,3833.3,4.58726675]
[1760273583252,48.41187939,3833.4,3833.3,2.24682]
[1760273583552,47.09044997,3833.4,3833.3,7.24682]
[1760273583752,45.75073997,3833.4,3833.3,7.24682]
[1760273584155,45.22248997,3833.4,3833.3,7.24682]
[1760273584562,46.27138997,3833.4,3833.3,7.24682]
[1760273584859,46.27138997,3833.4,3833.3,2.24682]
[1760273585259,46.27138997,3833.4,3833.3,4.10864077]
[1760273586264,45.75918997,3833.4,3833.3,2.24682]
[1760273586558,45.22248997,3833.4,3833.3,2.24682]
[1760273586865,5.8e-07,3833.4,3833.3,7.24682]
[1760273587770,1.8143,3834.7,3834.6,2.24666]
[1760273587959,1.3021,3835.2,3835.1,0.4692]
[1760273588265,1.8143,3835.2,3835.1,1.7547]
[1760273588568,2.18031661,3835.2,3835.1,7.2466]
[1760273588767,41.77942379,3835.2,3835.1,7.24914626]
[1760273589565,0.97942379,3835.2,3835.1,7.24914626]
[1760273589761,6.22317454,3835.2,3835.1,2.24914626]
[1760273590064,4.94557454,3835.2,3835.1,2.24914626]
[1760273590264,4.40887454,3835.2,3835.1,2.24914626]
[1760273592161,4.94557454,3835.2,3835.1,2.24914626]
[1760273594966,6.22317454,3835.2,3835.1,0.47174626]
[1760273595669,47.02317454,3835.2,3835.1,0.47174626]
[1760273595968,47.02317454,3835.2,3835.1,1.75724626]
[1760273597173,47.02317454,3835.2,3835.1,2.24914626]
[1760273597174,5.45777454,3835.2,3835.1,2.24914626]
[1760273597364,4.40887454,3835.2,3835.1,2.24914626]
[1760273598662,4.94557454,3835.2,3835.1,2.24914626]
[1760273600173,4.40887454,3835.2,3835.1,2.24914626]
[1760273601172,4.94557454,3835.2,3835.1,2.24914626]
[1760273605766,4.40887454,3835.2,3835.1,2.24914626]
[1760273607369,3.82904454,3835.2,3835.1,2.24914626]
[1760273607572,3.22502454,3835.2,3835.1,2.24914626]
[1760273607867,4.28912675,3835.2,3835.1,2.24914626]
[1760273608073,2.12775221,3835.2,3835.1,7.24914626]
[1760273608273,41.3367,3835.9,3835.8,2.24652]
[1760273608665,44.5968053,3835.9,3835.8,2.24652]
[1760273608870,45.3622053,3835.9,3835.8,2.24652]
[1760273610271,1.0489,3835.8,3835.2,1.17298]
[1760273610473,1.0489,3835.4,3835.3,2.24658]
[1760273610865,7.2050671,3835.4,3835.3,2.24658]
[1760273614174,7.9882671,3835.4,3835.3,0.46918]
[1760273614370,7.9882671,3835.4,3835.3,1.82338]
[1760273614576,7.9882671,3835.4,3835.3,2.35518]
[1760273614776,6.1561671,3835.4,3835.3,2.35518]
[1760273616375,6.7130671,3835.4,3835.3,2.35518]
[1760273617374,6.7130671,3835.4,3835.3,4.21263294]
[1760273617579,8.0303671,3835.4,3835.3,4.21263294]
[1760273617780,7.2471671,3835.4,3835.3,4.21263294]
[1760273617977,6.7130671,3835.4,3835.3,4.21263294]
[1760273619583,8.0303671,3835.4,3835.3,2.35518]
[1760273620580,8.0303671,3835.4,3835.1,0.00254626]
[1760273620581,0.7832,3835.3,3835.1,0.00254626]
[1760273620773,1.091,3835.2,3835.1,1.88854626]
[1760273620974,8.177443,3835.2,3835.1,2.35774626]
[1760273621581,48.977443,3835.2,3835.1,2.35774626]
[1760273621775,48.194243,3835.2,3835.1,2.35774626]
[1760273623782,47.103243,3835.2,3835.1,2.35774626]
[1760273624282,6.303243,3835.2,3835.1,2.35774626]
[1760273624478,2.92976251,3835.2,3835.1,2.35774626]
[1760273624883,44.65558684,3835.7,3835.6,2.31394]
[1760273625084,45.42158684,3835.7,3835.6,2.31394]
[1760273625278,42.639,3835.7,3835.6,2.31394]
[1760273625479,46.04619288,3835.7,3835.6,2.31394]
[1760273625786,49.06752878,3835.7,3835.6,2.31394]
[1760273626182,49.06752878,3835.7,3835.6,1.79014]
[1760273627681,49.06752878,3835.7,3835.6,0.46914]
[1760273628389,48.30152878,3835.7,3835.6,2.31394]
[1760273628689,49.06752878,3835.7,3835.6,2.31394]
[1760273633086,49.06752878,3835.7,3835.6,4.17139294]
[1760273633289,49.06752878,3835.7,3835.6,2.31394]
[1760273633795,47.22852878,3835.7,3835.6,2.31394]
[1760273634588,6.42852878,3835.7,3835.6,2.31394]
[1760273634790,6.42852878,3835.7,3835.6,4.65438675]
[1760273636394,8.26752878,3835.7,3835.6,4.65027065]
[1760273636694,7.50152878,3835.7,3835.6,4.65027065]
[1760273637289,7.50152878,3835.7,3835.6,2.31394]
[1760273637690,6.42852878,3835.7,3835.6,2.31394]
[1760273639394,7.50152878,3835.7,3835.6,2.31394]
[1760273639595,8.26752878,3835.7,3835.6,2.31394]
[1760273640197,7.50152878,3835.7,3835.6,2.31394]
[1760273640496,6.97522878,3835.7,3835.6,2.31394]
[1760273642490,6.42852878,3835.7,3835.6,2.31394]
[1760273643398,3.40719288,3835.7,3835.6,2.31394]
[1760273644708,0.0033424,3835.9,3835.8,1.56222]
[1760273645002,0.0033424,3835.9,3835.8,2.39492]
[1760273645208,3.33084856,3835.9,3835.8,2.39492]
[1760273645406,0.0033424,3835.9,3835.8,2.39492]
[1760273645606,40.8,3836.5,3836.4,2.39484]
[1760273646005,47.00831333,3836.5,3836.4,2.39484]
[1760273646706,48.03720746,3836.5,3836.4,2.39484]
[1760273646910,48.83910746,3836.5,3836.4,1.84504]
[1760273649409,48.83910746,3836.5,3836.4,2.39484]
[1760273649410,48.03720746,3836.5,3836.4,2.39484]
[1760273649616,47.01090746,3836.5,3836.4,2.39484]
[1760273650910,47.52700746,3836.5,3836.4,2.39484]
[1760273652013,47.01090746,3836.5,3836.4,2.39484]
[1760273652213,47.01090746,3836.5,3836.4,4.72573325]
[1760273652408,47.01090746,3836.5,3836.4,2.39484]
[1760273652815,47.01090746,3836.5,3836.4,4.72573325]
[1760273653912,6.21090746,3836.5,3836.4,4.72573325]
[1760273657419,0.00259413,3836.5,3836.4,4.72573325]
[1760273657621,2.8166163,3836.5,3836.4,2.39484]
[1760273658412,0.00259413,3836.5,3836.4,2.39484]
[1760273659418,0.51869413,3836.5,3836.4,4.72132877]
[1760273659811,3.98318626,3836.5,3836.4,4.72132877]
[1760273660318,5.29528626,3836.5,3836.4,4.17152877]
[1760273660516,8.59421388,3836.5,3836.4,1.30174]
[1760273660718,8.32111388,3836.5,3836.4,1.84504]
[1760273662818,8.32111388,3836.5,3836.4,1.376]
[1760273663023,8.32111388,3836.5,3836.1,2.32648877]
[1760273663024,1.0263,3836.2,3836.1,2.79556877]
[1760273663227,1.8282,3836.2,3836.1,1.84508]
[1760273663417,8.07082018,3836.2,3836.1,1.84508]
[1760273663724,8.07082018,3836.2,3836.1,0.46908]
[1760273663923,8.07082018,3836.2,3836.1,2.33328727]
[1760273664724,48.87082018,3836.2,3836.1,2.33328727]
[1760273667017,48.87082018,3836.2,3836.1,1.86420727]